bitfinex/quotes_ETHUSD_20260217
["timestamp","ask_amount","ask_price","bid_price","bid_amount"]
[1771311823666,5.04579544,1982.3,1981.7,0.4707044]
[1771311823667,0.864,1982.1,1981.7,0.4707044]
[1771311823868,0.8651,1982.3,1981.9,0.4707044]
[1771311824369,0.8651,1982.3,1982.1,0.47853268]
[1771311825179,0.0011,1982.3,1982.1,0.47853268]
[1771311825971,0.0011,1982.3,1981.9,1.26141017]
[1771311826176,0.0011,1982.3,1982.0,0.47853268]
[1771311827248,0.0011,1982.2,1982.0,0.47853268]
[1771311831671,0.0011,1982.2,1982.1,0.45712533]
[1771311832178,0.0011,1982.4,1982.1,0.45712533]
[1771311832386,0.0011,1982.5,1982.1,0.45712533]
[1771311832782,0.0011,1982.5,1982.2,1.2612249]
[1771311833094,0.0011,1982.5,1982.3,0.45712533]
[1771311838682,0.0011,1982.5,1982.1,1.71836818]
[1771311839856,0.0011,1982.5,1982.2,0.001]
[1771311840088,0.0011,1982.4,1982.2,0.45812533]
[1771311840585,0.0011,1982.4,1982.2,1.71934499]
[1771311841164,0.0011,1982.4,1982.2,0.45812533]
[1771311841784,0.0011,1982.4,1982.2,0.001]
[1771311842890,0.0011,1982.4,1982.2,0.45812533]
[1771311843071,0.0011,1982.7,1982.5,5.90852885]
[1771311843269,0.861,1983.0,1982.5,5.90852885]
[1771311843484,0.861,1983.0,1982.5,0.45712533]
[1771311845773,0.861,1983.0,1982.5,1.71815261]
[1771311845972,2.12172225,1983.0,1982.5,0.45712533]
[1771311846401,2.12172225,1983.0,1982.5,1.71815889]
[1771311848090,2.12172225,1983.0,1982.5,0.45712533]
[1771311849689,2.6206517,1983.0,1982.4,1.26109125]
[1771311850470,0.49892945,1982.9,1982.2,0.001]
[1771311851200,0.49892945,1982.9,1982.2,1.71934846]
[1771311851400,2.12172225,1983.0,1982.3,5.90852885]
[1771311851594,2.12172225,1983.0,1982.4,0.45712533]
[1771311851595,0.862,1982.9,1982.4,0.45712533]
[1771311853873,0.8631,1982.9,1982.4,0.45712533]
[1771311854097,2.12388127,1982.9,1982.4,0.45712533]
[1771311854792,2.62167475,1982.9,1982.3,0.001]
[1771311854992,0.49779348,1982.8,1982.3,0.001]
[1771311855799,1.75869981,1982.8,1982.3,0.001]
[1771311859796,2.1239229,1982.9,1982.3,0.46666653]
[1771311859999,2.62171638,1982.9,1982.3,0.46666653]
[1771311860170,0.49779348,1982.8,1982.3,0.001]
[1771311861994,1.75868151,1982.8,1982.3,0.001]
[1771311864288,0.49779348,1982.8,1982.3,0.001]
[1771311864488,0.49779348,1982.7,1982.3,0.001]
[1771311864729,2.62167624,1982.9,1982.3,0.001]
[1771311864901,0.49779348,1982.8,1982.3,0.001]
[1771311865293,2.62167624,1982.9,1982.3,0.46666653]
[1771311865526,0.8631,1982.9,1982.3,0.46666653]
[1771311865700,2.12388129,1982.9,1982.3,0.46666653]
[1771311866214,0.49779348,1982.8,1982.3,0.001]
[1771311866712,0.49779348,1982.6,1982.4,0.001]
[1771311866913,0.865,1982.5,1982.4,4.73e-05]
[1771311869558,2.12603404,1982.5,1982.4,4.73e-05]
[1771311871432,0.865,1982.5,1982.4,4.73e-05]
[1771311871842,2.12603404,1982.5,1982.4,4.73e-05]
[1771311875256,0.865,1982.5,1982.4,4.73e-05]
[1771311880530,2.12603404,1982.5,1982.4,4.73e-05]
[1771311880851,0.865,1982.5,1982.4,4.73e-05]
[1771311882258,2.12603404,1982.5,1982.4,4.73e-05]
[1771311882748,2.62382752,1982.5,1982.4,4.73e-05]
[1771311883053,2.12603404,1982.5,1982.4,4.73e-05]
[1771311883645,0.865,1982.5,1982.4,4.73e-05]
[1771311885258,2.12603404,1982.5,1982.4,4.73e-05]
[1771311885930,2.12603404,1982.5,1982.3,0.001]
[1771311886127,0.865,1982.5,1982.3,0.001]
[1771311887456,2.12603647,1982.5,1982.3,0.001]
[1771311891030,0.865,1982.5,1982.3,0.001]
[1771311891363,2.12603759,1982.5,1982.3,0.001]
[1771311891661,2.12603759,1982.5,1982.4,0.001]
[1771311892036,2.12713759,1982.5,1982.4,0.001]
[1771311894664,0.8661,1982.5,1982.4,0.001]
[1771311894964,2.12713404,1982.5,1982.4,0.001]
[1771311895548,0.8661,1982.5,1982.4,0.001]
[1771311895847,0.8661,1982.5,1982.4,4.739e-05]
[1771311896166,0.8661,1982.5,1982.3,0.001]
[1771311901180,2.12713579,1982.5,1982.3,0.001]
[1771311904081,2.12713579,1982.5,1982.4,0.001]
[1771311904280,2.12713579,1982.5,1982.1,0.48529244]
[1771311904483,0.0011,1982.4,1982.1,0.48529244]
[1771311908887,0.47146905,1982.4,1981.9,0.001]
[1771311909411,0.47146905,1982.4,1981.7,0.001]
[1771311909412,5.44943242,1982.1,1981.7,0.001]
[1771311909554,0.47036905,1981.9,1981.7,0.001]
[1771311909753,0.47036905,1981.9,1981.3,0.4856036]
[1771311909988,0.47036905,1981.9,1981.4,0.002]
[1771311910296,0.47036905,1981.9,1981.3,0.4856036]
[1771311910297,0.47036905,1981.7,1981.3,0.00331116]
[1771311910588,0.875,1981.6,1981.3,0.00331116]
[1771311911985,1.26135216,1982.0,1981.4,0.48629244]
[1771311912158,0.875,1981.8,1981.4,0.48629244]
[1771311912361,2.13649831,1981.8,1981.3,0.00131116]
[1771311912694,2.60686736,1981.8,1981.4,0.002]
[1771311913997,2.13649831,1981.8,1981.4,0.002]
[1771311915990,2.13649831,1981.8,1981.5,0.001]
[1771311918066,2.13649831,1981.8,1981.5,0.003]
[1771311919079,2.13649831,1981.8,1981.5,0.001]
[1771311922995,2.13649831,1981.8,1981.5,0.003]
[1771311923194,2.58744877,1981.8,1981.5,0.003]
[1771311923785,0.45095046,1981.7,1981.5,0.003]
[1771311924195,0.45095046,1981.7,1981.3,0.00131116]
[1771311925304,0.45095046,1981.5,1980.7,0.46805959]
[1771311925480,0.88,1981.4,1980.7,0.46805959]
[1771311927070,0.88,1981.4,1981.1,0.46805959]
[1771311927294,0.88,1981.4,1981.2,0.46805959]
[1771311929689,0.88,1981.4,1981.0,1.72999748]
[1771311929884,0.88,1981.4,1981.0,0.46805959]
[1771311930307,2.14174628,1981.4,1981.0,0.46805959]
[1771311931404,0.88,1981.4,1981.0,0.46805959]
[1771311931983,2.1417367,1981.4,1980.8,1.7311251]
[1771311932494,2.1417367,1981.4,1980.9,0.46805959]
[1771311932687,0.88,1981.4,1980.9,0.46805959]
[1771311933910,2.14173821,1981.4,1980.8,1.7311251]
[1771311934208,2.14173821,1981.4,1980.8,0.46905959]
[1771311934409,2.59268867,1981.4,1980.8,0.46905959]
[1771311934612,2.59268867,1981.4,1980.8,0.001]
[1771311934613,0.45095046,1981.3,1980.8,0.001]
[1771311936190,2.14177417,1981.4,1980.8,0.46905959]
[1771311936884,2.59272463,1981.4,1980.8,0.46905959]
[1771311937299,0.45095046,1981.3,1980.8,0.001]
[1771311938122,1.26186149,1981.2,1980.8,0.001]
[1771311938342,1.71281195,1981.2,1980.8,0.001]
[1771311939226,0.45095046,1981.1,1980.8,0.001]
[1771311939427,0.882,1981.0,1980.8,0.001]
[1771311940741,2.59496934,1981.0,1980.2,5.51793949]
[1771311940942,2.59496934,1981.0,1980.4,0.46805959]
[1771311941101,2.14401888,1981.0,1980.4,0.46805959]
[1771311942234,2.14401888,1981.0,1980.2,1.26245547]
[1771311942235,0.45095046,1980.9,1980.2,0.46805959]
[1771311942432,8.50978844,1981.0,1979.9,0.46805959]
[1771311942433,5.90772002,1980.6,1979.9,0.46805959]
[1771311942604,0.909,1980.6,1980.5,0.001]
[1771311942803,0.883,1980.6,1980.0,1.26262626]
[1771311943105,0.883,1980.6,1980.4,0.001]
[1771311944723,1.37377634,1980.6,1979.8,1.26270324]
[1771311945027,1.26230749,1980.5,1979.9,0.46837862]
[1771311945233,1.75308383,1980.5,1979.9,0.46837862]
[1771311946335,2.14529104,1980.6,1980.0,0.46837862]
[1771311947232,2.63606738,1980.6,1980.0,0.46837862]
[1771311947930,1.26220815,1980.7,1980.1,0.46837862]
[1771311948126,1.793,1980.6,1980.1,0.46837862]
[1771311948807,0.884,1980.5,1980.1,0.46837862]
[1771311953029,2.146317,1980.5,1979.9,1.72091464]
[1771311953218,2.146317,1980.5,1980.0,0.45826584]
[1771311953540,0.884,1980.5,1980.0,0.45826584]
[1771311954413,2.14630877,1980.5,1980.0,0.45826584]
[1771311954738,0.884,1980.5,1980.0,1.72088558]
[1771311954934,0.884,1980.5,1980.1,0.45826584]
[1771311955526,0.8232,1980.5,1980.1,0.45826584]
[1771311955873,0.91,1981.0,1980.3,0.45826584]
[1771311956133,1.73728108,1981.1,1980.3,0.45826584]
[1771311956134,0.884,1980.9,1980.3,0.45826584]
[1771311956437,1.26211631,1980.8,1980.3,0.45826584]
[1771311957140,2.14609054,1980.9,1980.4,0.45826584]
[1771311957435,0.884,1980.8,1980.4,0.45926584]
[1771311959424,0.884,1980.8,1980.5,0.45826584]
[1771311959823,1.26196597,1981.1,1980.5,0.45826584]
[1771311960031,0.884,1981.0,1980.5,0.45826584]
[1771311960232,1.26190212,1981.2,1980.5,0.45826584]
[1771311960547,2.14596284,1981.1,1980.5,0.45826584]
[1771311960728,0.47535589,1981.0,1980.3,0.001]
[1771311960930,0.47535589,1980.9,1980.3,0.001]
[1771311963055,1.26211631,1980.8,1980.3,0.45926584]
[1771311963363,0.884,1980.7,1980.3,0.45926584]
[1771311964822,2.14623015,1980.7,1980.3,0.001]
[1771311965220,2.62158604,1980.7,1980.3,0.001]
[1771311965848,0.884,1980.7,1980.3,0.001]
[1771311966053,0.884,1980.7,1980.3,1.72169576]
[1771311966451,0.884,1980.7,1980.4,0.45826584]
[1771311966653,0.91,1981.0,1980.4,0.45826584]
[1771311966953,0.886,1980.9,1980.5,0.45826584]
[1771311967256,0.886,1981.0,1980.5,0.45826584]
[1771311968337,1.26189009,1981.2,1980.5,0.45826584]
[1771311968645,0.886,1981.1,1980.5,0.45826584]
[1771311969362,0.886,1981.1,1980.6,1.26224376]
[1771311969535,1.26295191,1981.3,1980.7,0.45826584]
[1771311969730,0.885,1981.2,1980.7,0.45826584]
[1771311971369,0.0011,1981.1,1980.7,1.72044323]
[1771311971555,0.8861,1981.1,1980.7,0.45826584]
[1771311972369,0.8861,1981.1,1980.5,0.45826584]
[1771311973169,0.8861,1981.1,1980.6,0.45826584]
[1771311973673,0.8861,1981.1,1980.6,1.72050458]
[1771311973875,2.14802621,1981.1,1980.6,0.45826584]
[1771311974031,0.8861,1981.1,1980.6,1.72048363]
[1771311974231,0.8861,1981.1,1980.7,0.49048254]
[1771311976099,0.8861,1981.1,1980.7,1.75265376]
[1771311978417,0.8861,1981.1,1980.8,0.49048254]
[1771311978766,0.0011,1981.1,1980.8,0.49048254]
[1771311978965,0.0011,1981.3,1980.9,0.49048254]
[1771311980182,0.0011,1981.3,1981.1,0.49048254]
[1771311980497,0.0011,1981.3,1981.2,0.49048254]
[1771311983388,0.0011,1981.3,1980.8,0.49048254]
[1771311983591,0.0011,1981.3,1980.7,1.75262607]
[1771311985098,0.0011,1981.3,1980.6,5.04890261]
[1771311985099,0.46692286,1981.2,1980.6,1.2622045]
[1771311985602,0.46802286,1981.2,1980.6,1.2622045]
[1771311985803,0.46802286,1981.2,1981.0,0.001]
[1771311987718,0.46802286,1981.2,1980.5,5.0491202]
[1771311987719,1.26297284,1981.2,1980.5,0.49048254]
[1771311988013,1.7298957,1981.2,1980.5,0.49048254]
[1771311989497,0.46692286,1981.1,1980.5,0.49048254]
[1771311989719,1.34992286,1981.0,1980.3,0.49148254]
[1771311990092,0.46692286,1980.9,1980.3,0.49148254]
[1771311990295,0.46692286,1980.9,1980.3,0.001]
[1771311990909,0.46692286,1980.9,1980.3,1.75391168]
[1771311991417,0.46692286,1980.9,1980.3,0.49148254]
[1771311992011,1.72901095,1980.9,1980.3,1.75390669]
[1771311992217,1.26208809,1980.9,1980.3,1.75390669]
[1771311993218,0.46692286,1980.8,1980.3,0.001]
[1771311993533,0.46692286,1980.8,1979.7,5.05126764]
[1771311993534,0.46692286,1980.7,1979.7,1.26278167]
[1771311993702,0.46692286,1980.7,1979.8,0.49048254]
[1771311994023,1.26230749,1980.5,1979.7,0.49048254]
[1771311994209,0.884,1980.4,1979.8,0.49048254]
[1771311994529,1.26230749,1980.5,1979.8,0.49048254]
[1771311994688,0.884,1980.4,1979.8,0.49048254]
[1771311996730,0.884,1980.4,1979.9,1.75317257]
[1771311997027,1.26230749,1980.5,1979.9,1.75317257]
[1771311997230,0.884,1980.5,1980.0,0.49048254]
[1771311997733,2.14631054,1980.5,1980.0,0.49048254]
[1771311999410,0.884,1980.5,1980.0,1.75308985]
[1771311999733,0.884,1980.5,1980.1,0.001]
[1771312001133,2.14631201,1980.5,1980.1,0.001]
[1771312001428,2.61323487,1980.5,1980.1,0.001]
[1771312001642,0.46692286,1980.4,1979.6,0.49048254]
[1771312001942,0.884,1980.5,1979.8,0.49048254]
[1771312002142,0.884,1980.5,1980.0,0.49048254]
[1771312003635,1.26224438,1980.6,1980.0,0.49048254]
[1771312003636,1.72914455,1980.7,1980.0,1.75310625]
[1771312003815,5.04857213,1980.8,1980.1,0.49048254]
[1771312003816,1.26214411,1980.8,1980.1,0.49048254]
[1771312004007,0.884,1980.7,1980.1,0.49048254]
[1771312005223,1.35357231,1980.7,1980.1,0.49048254]
[1771312006035,1.26224376,1980.6,1980.1,0.49048254]
[1771312006239,2.615801,1980.7,1980.1,1.75304416]
[1771312006539,2.615801,1980.7,1980.1,0.49048254]
[1771312007349,0.884,1980.7,1980.2,0.4687278]
[1771312008822,0.884,1980.7,1980.2,1.73119262]
[1771312009023,0.884,1980.7,1980.2,0.4687278]
[1771312009024,2.14618393,1980.7,1980.2,0.4687278]
[1771312009743,0.884,1980.7,1980.2,0.4687278]
[1771312009947,0.884,1980.7,1980.2,1.7312181]
[1771312010320,1.26208769,1980.9,1980.3,0.48261916]
[1771312010525,0.883,1980.8,1980.3,0.48261916]
[1771312011344,2.14511835,1980.8,1980.3,0.48261916]
[1771312012136,0.883,1980.8,1980.3,1.74505327]
[1771312012418,1.75032193,1980.9,1980.3,1.74505327]
[1771312012633,0.883,1980.8,1980.3,1.74505327]
[1771312012811,0.48822187,1981.1,1980.4,0.48261916]
[1771312013012,0.883,1981.0,1980.4,0.48261916]
[1771312013314,0.0011,1980.6,1980.5,1.26230749]
[1771312014051,0.0011,1980.6,1980.5,1.74492665]
[1771312014245,5.04862323,1981.2,1980.5,0.48261916]
[1771312014246,0.0011,1980.9,1980.5,0.48261916]
[1771312015721,0.0011,1980.9,1980.6,0.48261916]
[1771312015922,0.0011,1980.9,1980.5,1.74487716]
[1771312017643,0.0011,1980.9,1980.5,0.48261916]
[1771312017849,0.0011,1980.9,1980.6,0.48261916]
[1771312018144,0.8831,1981.2,1980.7,0.48261916]
[1771312019152,0.0011,1981.2,1980.7,0.48261916]
[1771312019348,0.0011,1981.2,1980.5,1.26230416]
[1771312019349,0.0011,1981.2,1980.9,0.48261916]
[1771312022222,0.0011,1981.2,1980.9,1.74466382]
[1771312022729,0.0011,1981.2,1980.9,0.48261916]
[1771312024249,0.0011,1981.2,1980.9,1.74466992]
[1771312025047,0.0011,1981.2,1980.9,0.48261916]
[1771312025257,0.0011,1981.2,1980.9,1.74466659]
[1771312026768,0.0011,1981.1,1980.9,1.74466659]
[1771312027056,0.0011,1981.1,1980.9,0.48261916]
[1771312027345,0.0011,1981.1,1980.9,1.74466895]
[1771312028248,0.0011,1981.2,1980.9,1.74466895]
[1771312029425,0.0011,1981.4,1981.1,0.48261916]
[1771312029626,0.0011,1981.6,1981.2,5.45764143]
[1771312029829,0.0011,1981.8,1981.3,0.48261916]
[1771312030825,1.26258079,1981.8,1981.2,5.45764143]
[1771312031221,0.0011,1981.8,1981.2,5.45764143]
[1771312031453,0.0011,1981.8,1981.3,1.2617978]
[1771312032752,0.48932187,1981.7,1981.2,1.26181729]
[1771312035150,0.0011,1981.7,1981.2,1.72033226]
[1771312035350,0.0011,1981.7,1981.2,7.17797369]
[1771312037451,0.0011,1982.0,1981.5,0.45851497]
[1771312037650,0.0011,1982.0,1981.6,5.9161564]
[1771312038354,0.0011,1982.0,1981.7,0.45851497]
[1771312038653,0.0011,1982.0,1981.6,5.9161564]
[1771312039556,0.0011,1982.0,1981.7,1.26154311]
[1771312040145,0.0011,1982.0,1981.7,1.72005808]
[1771312040352,0.0011,1981.9,1981.7,1.72005808]
[1771312040649,0.0011,1982.0,1981.5,1.26162618]
[1771312041154,0.0011,1982.0,1981.5,1.72014115]
[1771312043051,0.0011,1982.0,1981.5,7.17778258]
[1771312043637,0.0011,1982.0,1981.6,0.45851497]
[1771312043960,0.0011,1982.0,1981.7,1.26154311]
[1771312044167,0.0011,1982.0,1981.6,1.72007325]
[1771312045969,0.49388197,1981.9,1981.2,0.45851497]
[1771312046752,0.49388197,1981.9,1981.3,5.91062987]
[1771312047432,0.0011,1982.0,1981.5,1.26167045]
[1771312047758,0.0011,1982.0,1981.4,1.72019862]
[1771312047759,1.75633441,1982.0,1981.4,1.72019862]
[1771312049456,0.49388197,1981.9,1981.3,7.17239254]
[1771312049970,1.75532416,1981.9,1981.3,7.17239254]
[1771312050968,0.49388197,1981.7,1981.0,0.001]
[1771312052037,1.26160678,1981.6,1981.0,0.001]
[1771312052233,0.49388197,1981.5,1981.0,0.001]
[1771312052469,0.49388197,1981.5,1981.4,0.001]
[1771312052769,0.49388197,1981.5,1981.0,0.001]
[1771312053070,0.49388197,1981.5,1981.3,0.001]
[1771312053273,0.49186355,1981.5,1981.3,0.001]
[1771312055374,1.75358199,1981.5,1981.3,0.001]
[1771312056880,1.26171844,1981.5,1981.3,0.001]
[1771312057374,1.75560041,1981.5,1981.3,0.001]
[1771312058395,1.26165189,1981.6,1981.3,0.001]
[1771312060069,1.75553386,1981.6,1981.3,0.001]
[1771312063088,0.0011,1981.9,1981.3,0.45951497]
[1771312063292,0.876,1981.6,1981.3,0.45951497]
[1771312065084,0.876,1981.6,1981.4,0.49315557]
[1771312065272,0.0011,1981.5,1981.4,0.49315557]
[1771312065656,0.0011,1981.5,1981.4,0.001]
[1771312066178,0.0011,1981.5,1981.4,0.49315557]
[1771312067462,0.0011,1981.5,1981.4,0.001]
[1771312073890,0.0011,1981.5,1981.0,1.72586029]
[1771312074072,0.0011,1981.5,1981.0,0.46487363]
[1771312074975,0.48122777,1981.5,1981.0,0.002]
[1771312075375,0.48122777,1981.5,1981.0,0.001]
[1771312076314,0.48012777,1981.3,1981.0,0.001]
[1771312077173,0.48012777,1981.1,1981.0,0.001]
[1771312078196,0.48012777,1981.1,1980.7,0.001]
[1771312078376,1.26198889,1981.0,1980.7,0.002]
[1771312078574,1.74210169,1981.1,1980.8,0.001]
[1771312078782,0.876,1981.2,1980.8,0.46487363]
[1771312078988,0.876,1981.2,1980.9,0.001]
[1771312079995,0.876,1981.2,1981.0,0.001]
[1771312079996,2.13786856,1981.2,1981.0,0.001]
[1771312080218,2.61799633,1981.2,1980.8,0.001]
[1771312080520,2.61799633,1981.2,1980.8,0.002]
[1771312081902,2.61799633,1981.2,1980.8,0.001]
[1771312082724,0.0011,1981.4,1980.9,0.46287363]
[1771312082902,0.0011,1981.4,1980.9,0.46387363]
[1771312083099,0.0011,1981.4,1981.0,0.46387363]
[1771312083309,0.0011,1981.4,1980.9,0.46387363]
[1771312083502,1.26285773,1981.4,1980.9,0.001]
[1771312083702,1.26285773,1981.4,1981.0,0.001]
[1771312083897,1.26285773,1981.4,1980.9,0.001]
[1771312084292,1.26285773,1981.4,1981.0,0.001]
[1771312084493,1.7429855,1981.4,1980.9,0.001]
[1771312085118,1.7429855,1981.4,1980.8,0.001]
[1771312085425,1.7429855,1981.4,1980.9,0.001]
[1771312086533,1.7429855,1981.4,1980.8,0.001]
[1771312086738,1.7429855,1981.4,1980.9,0.001]
[1771312087509,1.26283957,1981.4,1981.0,0.001]
[1771312087833,1.26283957,1981.4,1980.9,0.46387363]
[1771312090237,0.0011,1981.4,1981.0,0.001]
[1771312092714,0.0011,1981.4,1981.1,0.001]
[1771312094737,0.0001,1981.6,1981.3,0.4979969]
[1771312097158,0.0001,1981.6,1981.1,1.26187901]
[1771312097159,0.0001,1981.6,1981.1,0.4979969]
[1771312099336,0.0001,1981.6,1981.1,1.75991924]
[1771312100044,0.0001,1981.6,1981.1,0.4979969]
[1771312101115,0.49976148,1981.6,1981.0,0.001]
[1771312101513,1.26167045,1981.5,1981.0,0.001]
[1771312101714,1.26167045,1981.5,1981.0,0.4989969]
[1771312102619,1.26277045,1981.5,1981.0,0.4989969]
[1771312102945,0.0011,1981.5,1981.0,1.76098025]
[1771312105734,0.0011,1981.5,1981.0,0.4989969]
[1771312105938,0.0011,1981.5,1981.0,1.76098385]
[1771312106254,0.49966148,1981.4,1980.9,0.001]
[1771312106545,2.14180433,1981.3,1980.9,0.001]
[1771312107255,0.49966148,1981.2,1980.9,0.001]
[1771312108856,1.26192519,1981.1,1980.9,0.001]
[1771312111479,0.49966148,1981.0,1980.7,0.001]
[1771312111637,0.49966148,1980.8,1980.1,0.4989969]
[1771312112737,0.49966148,1980.7,1980.1,0.001]
[1771312113054,1.26224376,1980.6,1980.1,0.001]
[1771312113367,0.884,1980.5,1980.1,0.001]
[1771312113866,1.38366148,1980.5,1980.1,0.001]
[1771312114369,1.26224376,1980.6,1980.1,0.001]
[1771312114552,0.884,1980.5,1980.1,0.4989969]
[1771312114762,6.33991181,1980.5,1980.1,0.001]
[1771312115068,1.26237123,1980.4,1980.1,0.001]
[1771312115555,2.14631994,1980.5,1980.1,0.001]
[1771312118528,0.49966148,1980.4,1980.1,0.001]
[1771312118936,0.49966148,1980.4,1979.6,1.76087829]
[1771312119453,0.49966148,1980.4,1979.7,0.4979969]
[1771312120370,5.93344957,1980.5,1979.8,0.4979969]
[1771312120544,1.26241131,1980.4,1979.8,0.4979969]
[1771312120879,0.887,1980.5,1979.8,0.4479969]
[1771312122978,2.14933795,1980.5,1979.9,1.26269003]
[1771312123156,2.14933795,1980.5,1980.0,0.4979969]
[1771312125368,0.4949106,1980.4,1979.8,0.49931774]
[1771312126361,2.14933795,1980.5,1980.1,0.001]
[1771312126570,0.887,1980.5,1980.1,0.001]
[1771312126769,2.14930899,1980.5,1980.1,0.001]
[1771312128258,2.14930899,1980.5,1980.1,0.50031774]
[1771312128259,0.887,1980.5,1980.1,0.50031774]
[1771312128575,0.0011,1980.6,1980.1,0.50031774]
[1771312129291,0.0011,1980.6,1980.2,1.76181647]
[1771312129692,0.0011,1980.6,1980.3,0.49931774]
[1771312131995,0.0011,1980.6,1980.3,1.7617461]
[1771312132493,0.0011,1980.6,1980.3,0.49931774]
[1771312132899,0.0011,1980.6,1980.4,0.49773245]
[1771312134974,0.0011,1980.6,1980.3,1.26240089]
[1771312135187,0.0011,1980.6,1980.3,0.49773245]
[1771312135898,0.0011,1980.6,1980.3,1.76016267]
[1771312136787,0.0011,1980.6,1980.3,0.49773245]
[1771312136984,0.0011,1980.6,1980.2,1.76018066]
[1771312137994,0.0011,1980.6,1980.3,0.49773245]
[1771312139404,0.0011,1980.6,1980.3,1.76016429]
[1771312139601,0.0011,1980.5,1980.3,1.76016429]
[1771312141300,0.0011,1980.5,1980.4,0.49773245]
[1771312143504,0.0011,1980.5,1980.2,0.49773245]
[1771312145919,0.0011,1980.5,1980.3,1.26243498]
[1771312147825,0.0011,1980.5,1980.3,0.49773245]
[1771312148620,0.0011,1980.5,1980.1,1.76129494]
[1771312149120,0.0011,1980.5,1980.1,1.26356249]
[1771312149289,0.0011,1980.5,1980.2,0.49773245]
[1771312150195,0.0011,1980.5,1980.1,0.001]
[1771312150196,0.0011,1980.5,1980.1,1.7612812]
[1771312150399,0.46742576,1980.5,1980.1,0.001]
[1771312152119,0.46632576,1980.3,1980.1,0.001]
[1771312154529,1.7287853,1980.3,1980.1,0.001]
[1771312155003,0.45005654,1980.2,1980.1,0.001]
[1771312158533,1.71255527,1980.2,1980.1,0.001]
[1771312159239,1.71255527,1980.2,1980.0,0.001]
[1771312160746,0.45005654,1980.1,1980.0,0.001]
[1771312161116,0.45005654,1980.0,1979.3,0.94946606]
[1771312161414,0.45005654,1980.0,1979.4,0.002]
[1771312161635,0.45005654,1979.8,1979.4,0.002]
[1771312162607,1.71273187,1980.0,1979.5,0.002]
[1771312162806,1.71273187,1980.0,1979.4,0.002]
[1771312163246,0.45005654,1979.9,1979.5,0.002]
[1771312163453,0.45005654,1979.9,1979.4,0.002]
[1771312163608,1.71281035,1979.8,1979.4,0.002]
[1771312163818,1.71281035,1979.8,1979.5,0.002]
[1771312164016,1.71281035,1979.8,1979.4,0.002]
[1771312164419,1.71281035,1979.8,1979.5,0.002]
[1771312164617,1.71281035,1979.8,1979.4,0.002]
[1771312165021,1.71281035,1979.8,1979.5,0.002]
[1771312165223,1.71281035,1979.8,1979.4,0.002]
[1771312165835,1.71281035,1979.8,1979.5,0.002]
[1771312166133,1.71281035,1979.8,1979.4,0.002]
[1771312166516,1.71281035,1979.8,1979.5,0.002]
[1771312166726,1.71281035,1979.8,1979.3,0.94946606]
[1771312166727,1.71281035,1979.8,1979.4,0.002]
[1771312166927,0.45005654,1979.7,1979.4,0.002]
[1771312167131,0.45005654,1979.7,1979.5,0.002]
[1771312167329,0.45005654,1979.7,1979.4,0.002]
[1771312168143,1.71292773,1979.7,1979.5,0.001]
[1771312169252,0.45005654,1979.9,1979.5,0.001]
[1771312170143,0.45005654,1979.9,1978.9,0.46278408]
[1771312170144,0.45005654,1979.7,1978.9,0.46278408]
[1771312170453,0.885,1979.6,1979.1,0.46278408]
[1771312170854,1.33505654,1979.6,1979.2,0.002]
[1771312171051,1.33505654,1979.6,1979.3,0.002]
[1771312171257,1.33505654,1979.6,1979.0,0.46478408]
[1771312171462,1.33505654,1979.6,1978.9,0.46478408]
[1771312171463,0.885,1979.6,1978.9,0.46478408]
[1771312171762,0.45005654,1979.5,1978.9,0.46478408]
[1771312171945,0.45005654,1979.5,1978.9,0.46278408]
[1771312172141,0.885,1979.6,1978.9,0.46278408]
[1771312172142,0.885,1979.6,1979.1,0.46278408]
[1771312173363,2.14788403,1979.6,1979.1,0.46278408]
[1771312173950,2.59794057,1979.6,1979.2,0.002]
[1771312174249,2.59794057,1979.6,1978.9,1.26327715]
[1771312174250,0.45005654,1979.5,1979.1,0.002]
[1771312174572,0.45005654,1979.5,1979.0,0.002]
[1771312175256,0.45005654,1979.5,1978.9,1.72609976]
[1771312175446,0.45005654,1979.5,1979.0,0.002]
[1771312175860,2.14788403,1979.6,1979.0,0.46478408]
[1771312176054,2.59794057,1979.6,1979.1,0.002]
[1771312176457,0.45005654,1979.5,1979.1,0.002]
[1771312176665,0.45005654,1979.4,1978.6,1.72627704]
[1771312176863,0.45005654,1979.4,1978.7,0.46278408]
[1771312177780,0.45005654,1979.4,1978.8,0.002]
[1771312178156,1.71312934,1979.3,1978.8,0.002]
[1771312178358,0.45005654,1979.2,1978.8,0.002]
[1771312178989,1.33805654,1979.2,1978.4,1.72643147]
[1771312179204,1.33805654,1979.2,1978.5,0.002]
[1771312179205,0.45005654,1979.1,1978.5,0.002]
[1771312179359,0.45005654,1979.0,1978.5,0.002]
[1771312179557,0.888,1979.2,1978.5,0.46478408]
[1771312179558,1.33805654,1979.2,1978.5,0.46478408]
[1771312179758,0.888,1979.2,1978.5,0.46478408]
[1771312180256,0.888,1979.2,1978.7,0.46278408]
[1771312180453,0.888,1979.2,1978.8,0.001]
[1771312180759,2.15114209,1979.2,1978.8,0.001]
[1771312181995,2.15114209,1979.2,1978.9,0.002]
[1771312182600,0.888,1979.2,1978.9,0.002]
[1771312187422,0.888,1979.2,1979.0,0.002]
[1771312188000,0.91,1979.5,1979.0,0.45995692]
[1771312188001,3.06399486,1979.5,1979.0,0.45995692]
[1771312188330,3.5219526,1979.5,1979.0,0.45995692]
[1771312188518,2.6119526,1979.5,1979.0,0.002]
[1771312188699,0.45795774,1979.4,1979.0,0.002]
[1771312189017,0.45795774,1979.4,1979.1,0.002]
[1771312189209,0.45795774,1979.4,1978.9,0.002]
[1771312191793,1.2630728,1979.3,1978.9,0.002]
[1771312192588,1.75671023,1979.3,1978.9,0.002]
[1771312194853,1.75671023,1979.3,1979.0,0.001]
[1771312195041,0.0011,1979.2,1979.0,0.001]
[1771312198952,0.0011,1979.2,1979.0,0.003]
[1771312200436,0.893,1979.1,1978.9,0.002]
[1771312200629,0.893,1979.1,1978.6,0.002]